lending/lending_fUSD_20240603
["ID","MTS","AMOUNT","RATE_DAILY","PERIOD"]
[328479779,1717429834886,-500.0,0.00030409,4]
[328479780,1717429834895,-500.0,0.00030409,4]
[328479781,1717429834903,-500.0,0.00030409,4]
[328479782,1717429834913,-500.0,0.00030409,4]
[328479783,1717429834922,-630.91,0.00030409,4]
[328479784,1717429834931,-500.0,0.00030409,4]
[328479785,1717429834940,-500.0,0.00030409,4]
[328479786,1717429834950,-1049.87796177,0.00030409,4]
[328479787,1717429834959,-500.0,0.00030409,4]
[328479788,1717429834968,-500.0,0.00030409,4]
[328479789,1717429834977,-500.0,0.00030409,4]
[328479790,1717429834986,-500.0,0.00030409,4]
[328479791,1717429834995,-500.0,0.00030409,4]
[328479792,1717429835004,-500.0,0.00030409,4]
[328479793,1717429835013,-500.0,0.00030409,4]
[328479794,1717429835022,-500.0,0.00030409,4]
[328479795,1717429835031,-500.0,0.00030409,4]
[328479796,1717429835040,-500.0,0.00030409,4]
[328479797,1717429835049,-500.0,0.00030409,4]
[328479798,1717429835058,-500.0,0.00030409,4]
[328479799,1717429835067,-500.0,0.00030409,4]
[328479800,1717429835076,-500.0,0.00030409,4]
[328479801,1717429835085,-500.0,0.00030409,4]
[328479802,1717429835095,-820.45,0.00030409,4]
[328479803,1717429835104,-500.0,0.00030409,4]
[328479804,1717429835113,-500.0,0.00030409,4]
[328479805,1717429835123,-500.0,0.00030409,4]
[328479806,1717429835132,-500.0,0.00030409,4]
[328479807,1717429835141,-500.0,0.00030409,4]
[328479808,1717429835151,-500.0,0.00030409,4]
[328479809,1717429835160,-500.0,0.00030409,4]
[328479810,1717429835170,-500.0,0.00030409,4]
[328479811,1717429835181,-500.0,0.00030409,4]
[328479812,1717429835191,-238.06407932,0.00030409,4]
[328479813,1717429835200,-861.6,0.00030409,4]
[328479814,1717429835209,-500.0,0.00030409,4]
[328479815,1717429835219,-500.0,0.00030409,4]
[328479816,1717429835229,-500.0,0.00030409,4]
[328479817,1717429835238,-500.0,0.00030409,4]
[328479818,1717429835247,-500.0,0.00030409,4]
[328479819,1717429835256,-500.0,0.00030409,4]
[328479820,1717429835266,-500.0,0.00030409,4]
[328479821,1717429835275,-500.0,0.00030409,4]
[328479822,1717429835285,-500.0,0.00030409,4]
[328479823,1717429835296,-500.0,0.00030409,4]
[328479824,1717429835305,-500.0,0.00030409,4]
[328479825,1717429835315,-500.0,0.00030409,4]
[328479826,1717429835324,-500.0,0.00030409,4]
[328479827,1717429835333,-500.0,0.00030409,4]
[328479828,1717429835342,-545.4554584,0.00030409,4]
[328479829,1717429835353,-500.0,0.00030409,4]
[328479830,1717429835362,-500.0,0.00030409,4]
[328479831,1717429835371,-500.0,0.00030409,4]
[328479832,1717429835381,-559.31533535,0.00030409,4]
[328479833,1717429835390,-500.0,0.00030409,4]
[328479834,1717429835399,-500.0,0.00030409,4]
[328479835,1717429835409,-500.0,0.00030409,4]
[328479836,1717429835420,-509.76929747,0.00030409,4]
[328479837,1717429835429,-500.0,0.00030409,4]
[328479838,1717429835437,-500.0,0.00030409,4]
[328479839,1717429835447,-500.0,0.00030409,4]
[328479840,1717429835456,-500.0,0.00030409,4]
[328479841,1717429835469,-508.83487289,0.00030409,4]
[328479842,1717429835479,-157.07848719,0.00030409,4]
[328479843,1717429835489,-500.0,0.00030409,4]
[328479844,1717429835498,-500.0,0.00030409,4]
[328479845,1717429835508,-500.0,0.00030409,4]
[328479846,1717429835517,-500.0,0.00030409,4]
[328479847,1717429835527,-500.0,0.00030409,4]
[328479848,1717429835536,-1392.31,0.00030409,4]
[328479849,1717429835546,-830.35,0.00030409,4]
[328479850,1717429835555,-500.0,0.00030409,4]
[328479851,1717429835566,-500.0,0.00030409,4]
[328479852,1717429835575,-239.11,0.0003041,4]
[328479853,1717429835586,-480.41,0.0003041,4]
[328479854,1717429835595,-572.94,0.0003041,4]
[328479855,1717429835604,-500.0,0.0003041,4]
[328479856,1717429835613,-500.0,0.0003041,4]
[328479857,1717429835622,-500.0,0.0003041,4]
[328479858,1717429835631,-500.0,0.0003041,4]
[328479859,1717429835639,-500.0,0.0003041,4]
[328479860,1717429835648,-307.49,0.0003041,4]
[328479861,1717429835657,-592.44,0.0003041,4]
[328479862,1717429835668,-363.10371353,0.0003041,4]
[328479863,1717429835677,-500.0,0.0003041,4]
[328479864,1717429835686,-500.0,0.0003041,4]
[328479865,1717429835695,-500.0,0.0003041,4]
[328479866,1717429835704,-647.35043161,0.0003041,4]
[328479867,1717429835714,-500.0,0.0003041,4]
[328479868,1717429835723,-500.0,0.0003041,4]
[328479869,1717429835736,-500.0,0.0003041,4]
[328479870,1717429835745,-500.0,0.0003041,4]
[328479871,1717429835754,-500.0,0.0003041,4]
[328479872,1717429835763,-500.0,0.0003041,4]
[328479873,1717429835773,-500.0,0.0003041,4]
[328479874,1717429835782,-500.0,0.0003041,4]
[328479875,1717429835791,-500.0,0.0003041,4]
[328479876,1717429835801,-500.0,0.0003041,4]
[328479877,1717429835813,-399.77,0.0003041,4]
[328479878,1717429835823,-200.98,0.0003041,4]
[328479879,1717429835832,-500.0,0.0003041,4]
[328479880,1717429835842,-340.75,0.0003041,4]
[328479881,1717429835850,-500.0,0.0003041,4]
[328479882,1717429835860,-480.82918147,0.0003041,4]
[328479883,1717429835869,-500.0,0.0003041,4]
[328479884,1717429835878,-500.0,0.0003041,4]
[328479885,1717429835888,-500.0,0.0003041,4]
[328479886,1717429835897,-500.0,0.0003041,4]
[328479887,1717429835907,-500.0,0.0003041,4]
[328479888,1717429835918,-500.0,0.0003041,4]
[328479889,1717429835927,-500.0,0.0003041,4]
[328479890,1717429835937,-500.0,0.0003041,4]
[328479891,1717429835945,-500.0,0.0003041,4]
[328479892,1717429835955,-500.0,0.0003041,4]
[328479893,1717429835964,-3375.12,0.0003041,4]
[328479894,1717429835974,-500.0,0.0003041,4]
[328479895,1717429835983,-634.72825885,0.0003041,4]
[328479896,1717429835992,-983.46,0.0003041,4]
[328479897,1717429836001,-1350.41,0.0003041,4]
[328479898,1717429836010,-500.0,0.0003041,4]
[328479899,1717429836019,-500.0,0.0003041,4]
[328479900,1717429836028,-500.0,0.0003041,4]
[328479901,1717429836037,-500.0,0.0003041,4]
[328479902,1717429836047,-860.35,0.0003041,4]
[328479903,1717429836055,-500.0,0.0003041,4]
[328479904,1717429836064,-500.0,0.0003041,4]
[328479905,1717429836203,-500.0,0.0003041,4]
[328479906,1717429836212,-500.0,0.0003041,4]
[328479907,1717429836221,-500.0,0.0003041,4]
[328479908,1717429836231,-500.0,0.0003041,4]
[328479909,1717429836240,-500.0,0.0003041,4]
[328479910,1717429836250,-500.0,0.0003041,4]
[328479911,1717429836259,-2676.48,0.0003041,4]
[328479912,1717429836268,-586.06,0.0003041,4]
[328479913,1717429836277,-593.55,0.0003041,4]
[328479914,1717429836286,-2597.85,0.0003041,4]
[328479915,1717429836295,-591.98,0.0003041,4]
[328479916,1717429836304,-3165.87,0.0003041,4]
[328479917,1717429836313,-500.0,0.0003041,4]
[328479918,1717429836323,-440.4,0.0003041,4]
[328479919,1717429836332,-500.0,0.0003041,4]
[328479920,1717429836341,-1110.13,0.0003041,4]
[328479921,1717429836350,-849.57,0.0003041,4]
[328479922,1717429836361,-746.25,0.0003041,4]
[328479923,1717429836371,-500.0,0.0003041,4]
[328479924,1717429836380,-500.0,0.0003041,4]
[328479925,1717429836389,-500.0,0.0003041,4]
[328479926,1717429836399,-626.03,0.0003041,4]
[328479927,1717429836408,-500.0,0.0003041,4]
[328479928,1717429836420,-500.0,0.0003041,4]
[328479929,1717429836428,-500.0,0.0003041,4]
[328479930,1717429836437,-500.0,0.0003041,4]
[328479931,1717429836446,-500.0,0.0003041,4]
[328479932,1717429836455,-500.0,0.0003041,4]
[328479933,1717429836465,-541.2,0.0003041,4]
[328479934,1717429836474,-500.0,0.0003041,4]
[328479935,1717429836483,-500.0,0.0003041,4]
[328479936,1717429836493,-500.0,0.0003041,4]
[328479937,1717429836502,-500.0,0.0003041,4]
[328479938,1717429836511,-500.0,0.0003041,4]
[328479939,1717429836520,-2530.81,0.0003041,4]
[328479940,1717429836529,-500.0,0.0003041,4]
[328479941,1717429836539,-500.0,0.0003041,4]
[328479942,1717429836548,-500.0,0.0003041,4]
[328479943,1717429836557,-500.0,0.0003041,4]
[328479944,1717429836567,-500.0,0.0003041,4]
[328479945,1717429836576,-1850.48,0.0003041,4]
[328479946,1717429836586,-500.0,0.0003041,4]
[328479947,1717429836595,-627.32,0.0003041,4]
[328479948,1717429836604,-500.0,0.0003041,4]
[328479949,1717429836613,-500.0,0.0003041,4]
[328479950,1717429836623,-500.0,0.0003041,4]
[328479951,1717429836632,-320.90220032,0.0003041,4]
[328479952,1717429836641,-1000.0,0.0003041,2]
[328479953,1717429836651,-1000.0,0.0003041,2]
[328479954,1717429836660,-1000.0,0.0003041,2]
[328479955,1717429836671,-1000.0,0.0003041,2]
[328479956,1717429836680,-1000.0,0.0003041,2]
[328479957,1717429836689,-1000.0,0.0003041,2]
[328479958,1717429836698,-1000.0,0.0003041,2]
[328479959,1717429836707,-1000.0,0.0003041,2]
[328479960,1717429836716,-1000.0,0.0003041,2]
[328479961,1717429836725,-1000.0,0.0003041,2]
[328479962,1717429836739,-1000.0,0.0003041,2]
[328479963,1717429836748,-1000.0,0.0003041,2]
[328479964,1717429836757,-1000.0,0.0003041,2]
[328479965,1717429836766,-1000.0,0.0003041,2]
[328479966,1717429836777,-1000.0,0.0003041,2]
[328479967,1717429836786,-1000.0,0.0003041,2]
[328479968,1717429836796,-1000.0,0.0003041,2]
[328479969,1717429836805,-1000.0,0.0003041,2]
[328479970,1717429836816,-1000.0,0.0003041,2]
[328479971,1717429836825,-1000.0,0.0003041,2]
[328479972,1717429836834,-1000.0,0.0003041,2]
[328479973,1717429836844,-520.4583842,0.0003041,2]
[328479974,1717429836862,-479.5416158,0.0003041,2]
[328479975,1717429836871,-460.28563399,0.0003041,2]
[328479976,1717429836883,-539.71436601,0.0003041,2]
[328479977,1717429836893,-54.9477374,0.0003041,2]
[328479978,1717429836908,-945.0522626,0.0003041,2]
[328479979,1717429836919,-1000.0,0.0003041,2]
[328479980,1717429836928,-525.19071237,0.0003041,2]
[328479981,1717429836948,-474.80928763,0.0003041,2]
[328479982,1717429836957,-29.88492513,0.0003041,2]
[328479983,1717429836968,-882.33461522,0.0003041,2]
[328479984,1717429836979,-87.78045965,0.0003041,2]
[328479985,1717429836989,-492.95753459,0.0003041,2]
[328479986,1717429837000,-507.04246541,0.0003041,2]
[328479988,1717429837010,-141.52612713,0.0003041,2]
[328479989,1717429837021,-858.47387287,0.0003041,2]
[328479991,1717429837030,-1000.0,0.0003041,2]
[328479992,1717429837039,-1000.0,0.0003041,2]
[328479993,1717429837048,-1000.0,0.0003041,2]
[328479994,1717429837058,-1000.0,0.0003041,2]
[328479995,1717429837067,-987.0,0.0003041,2]
[328479996,1717429837076,-204.28818122,0.00030438,7]
[328479997,1717429837086,-165.86590181,0.0003054,7]
[328479998,1717429837096,-152.48854642,0.00030608,7]
[328479999,1717429837105,-155.74834842,0.00030608,7]
[328480000,1717429837114,-204.28818122,0.00030677,7]
[328480001,1717429837123,-500.0,0.00030683,4]
[328480002,1717429837132,-500.0,0.00030683,4]
[328480003,1717429837141,-500.0,0.00030683,4]
[328480004,1717429837150,-500.0,0.00030683,4]
[328480005,1717429837159,-500.0,0.00030683,4]
[328480006,1717429837170,-500.0,0.00030683,4]
[328480007,1717429837180,-500.0,0.00030683,4]
[328480008,1717429837190,-500.0,0.00030683,4]
[328480009,1717429837199,-500.0,0.00030683,4]
[328480010,1717429837209,-500.0,0.00030683,4]
[328480011,1717429837218,-401.77045646,0.00030683,4]
[328480012,1717429837241,-500.0,0.00025499,2]
[328480013,1717429837250,-98.22954354,0.00030683,4]
[328480014,1717429837259,-500.0,0.00030683,4]
[328480015,1717429837268,-500.0,0.00030683,4]
[328480016,1717429837278,-500.0,0.00030683,4]
[328480017,1717429837287,-500.0,0.00030683,4]
[328480018,1717429837296,-156.89400836,0.00030683,4]
[328480019,1717429837305,-500.0,0.00030683,4]
[328480020,1717429837315,-500.0,0.00030683,4]
[328480021,1717429837324,-500.0,0.00030683,4]
[328480022,1717429837333,-500.0,0.00030683,4]
[328480023,1717429837342,-409.69198905,0.00030683,4]
[328480024,1717429837393,-500.0,0.00025499,2]
[328480025,1717429837403,-500.0,0.00025499,2]
[328480026,1717429837413,-90.30801095,0.00030683,4]
[328480027,1717429837422,-500.0,0.00030683,4]
[328480028,1717429837431,-500.0,0.00030683,4]
[328480029,1717429837441,-500.0,0.00030683,4]
[328480030,1717429837451,-500.0,0.00030683,4]
[328480031,1717429837460,-500.0,0.00030683,4]
[328480032,1717429837470,-500.0,0.00030683,4]
[328480033,1717429837480,-500.0,0.00030683,4]
[328480034,1717429837489,-500.0,0.00030683,4]
[328480035,1717429837498,-611.19820321,0.00030683,4]
[328480036,1717429837507,-613.26,0.00030683,4]
[328480037,1717429837516,-500.0,0.00030683,4]
[328480040,1717429837525,-500.0,0.00030683,4]
[328480043,1717429837533,-500.0,0.00030683,4]
[328480044,1717429837542,-500.0,0.00030683,4]
[328480045,1717429837552,-500.0,0.00030683,4]
[328480046,1717429837561,-500.0,0.00030683,4]
[328480047,1717429837570,-500.0,0.00030683,4]
[328480048,1717429837579,-222.65,0.00030683,4]
[328480049,1717429837588,-861.6,0.00030683,4]
[328480050,1717429837597,-500.0,0.00030683,4]
[328480051,1717429837607,-500.0,0.00030683,4]
[328480052,1717429837616,-500.0,0.00030683,4]
[328480053,1717429837625,-500.0,0.00030683,4]
[328480054,1717429837634,-500.0,0.00030683,4]
[328480055,1717429837643,-500.0,0.00030683,4]
[328480056,1717429837652,-500.0,0.00030683,4]
[328480057,1717429837663,-238.62,0.00030683,4]
[328480058,1717429837673,-500.0,0.00030683,4]
[328480059,1717429837682,-500.0,0.00030683,4]
[328480060,1717429837692,-500.0,0.00030683,4]
[328480061,1717429837701,-500.0,0.00030683,4]
[328480062,1717429837711,-500.0,0.00030683,4]
[328480063,1717429837720,-500.0,0.00030683,4]
[328480064,1717429837730,-500.0,0.00030683,4]
[328480065,1717429837743,-500.0,0.00030683,4]
[328480066,1717429837752,-500.0,0.00030683,4]
[328480067,1717429837763,-519.16996014,0.00030683,4]
[328480068,1717429837772,-500.0,0.00030683,4]
[328480069,1717429837783,-500.0,0.00030683,4]
[328480070,1717429837792,-1392.31,0.00030683,4]
[328480071,1717429837801,-830.35,0.00030683,4]
[328480072,1717429837811,-500.0,0.00030683,4]
[328480073,1717429837821,-228.28,0.00030684,4]
[328480074,1717429837830,-256.52,0.00030684,4]
[328480075,1717429837840,-325.02,0.00030684,4]
[328480076,1717429837849,-180.86,0.00030684,4]
[328480077,1717429837858,-500.0,0.00030684,4]
[328480078,1717429837868,-525.91,0.00030684,4]
[328480079,1717429837877,-500.0,0.00030684,4]
[328480080,1717429837886,-500.0,0.00030684,4]
[328480081,1717429837895,-500.0,0.00030684,4]
[328480082,1717429837905,-624.67,0.00030684,4]
[328480083,1717429837915,-261.15,0.00030684,4]
[328480084,1717429837925,-500.0,0.00030684,4]
[328480085,1717429837933,-500.0,0.00030684,4]
[328480086,1717429837942,-500.0,0.00030684,4]
[328480087,1717429837952,-513.25692985,0.00030684,4]
[328480088,1717429837962,-500.0,0.00030684,4]
[328480089,1717429837971,-542.65,0.00030684,4]
[328480090,1717429837981,-500.0,0.00030684,4]
[328480091,1717429837990,-1869.68087413,0.00030684,4]
[328480092,1717429838081,-400.25368682,0.00025499,2]
[328480093,1717429838090,-500.0,0.00025499,2]
[328480094,1717429838100,-214.12740818,0.00030684,4]
[328480099,1717429838758,-305.84,0.00025499,2]
[328480100,1717429838793,-194.16,0.00025499,2]
[328480101,1717429838803,-500.0,0.00025499,2]
[328480102,1717429838814,-500.0,0.00025499,2]
[328480103,1717429838823,-500.0,0.00025499,2]
[328480104,1717429838833,-500.0,0.00030136,4]
[328480105,1717429838843,-599.0,0.0003041,4]
[328480106,1717429838852,-619.18,0.0003041,4]
[328480107,1717429838862,-983.46,0.00030684,4]
[328480108,1717429838870,-1350.41,0.00030684,4]
[328480109,1717429838880,-500.0,0.00030684,4]
[328480110,1717429838889,-500.0,0.00030684,4]
[328480111,1717429838898,-500.0,0.00030684,4]
[328480112,1717429838908,-500.0,0.00030684,4]
[328480113,1717429838918,-860.35,0.00030684,4]
[328480114,1717429838927,-500.0,0.00030684,4]
[328480115,1717429838936,-500.0,0.00030684,4]
[328480116,1717429838945,-303.4,0.00030684,4]
[328480117,1717429838954,-500.0,0.00030684,4]
[328480118,1717429838963,-500.0,0.00030684,4]
[328480119,1717429838972,-500.0,0.00030684,4]
[328480120,1717429838981,-500.0,0.00030684,4]
[328480121,1717429838990,-2676.48,0.00030684,4]
[328480122,1717429838999,-586.06,0.00030684,4]
[328480123,1717429839009,-593.55,0.00030684,4]
[328480124,1717429839019,-2597.85,0.00030684,4]
[328480125,1717429839029,-591.98,0.00030684,4]
[328480126,1717429839039,-3165.87,0.00030684,4]
[328480127,1717429839049,-500.0,0.00030684,4]
[328480128,1717429839058,-500.0,0.00030684,4]
[328480129,1717429839068,-1110.13,0.00030684,4]
[328480130,1717429839077,-849.57,0.00030684,4]
[328480131,1717429839088,-746.25,0.00030684,4]
[328480132,1717429839098,-500.0,0.00030684,4]
[328480133,1717429839107,-500.0,0.00030684,4]
[328480134,1717429839118,-500.0,0.00030684,4]
[328480135,1717429839128,-626.03,0.00030684,4]
[328480136,1717429839138,-500.0,0.00030684,4]
[328480137,1717429839148,-500.0,0.00030684,4]
[328480138,1717429839157,-500.0,0.00030684,4]
[328480139,1717429839168,-500.0,0.00030684,4]
[328480140,1717429839178,-500.0,0.00030684,4]
[328480141,1717429839188,-500.0,0.00030684,4]
[328480142,1717429839199,-500.0,0.00030684,4]
[328480143,1717429839210,-359.60104906,0.00030684,4]
[328480144,1717429839220,-500.0,0.00030684,4]
[328480145,1717429839230,-500.0,0.00030684,4]
[328480146,1717429839240,-500.0,0.00030684,4]
[328480147,1717429839250,-2530.81,0.00030684,4]
[328480148,1717429839260,-413.21,0.00030684,4]
[328480149,1717429839270,-500.0,0.00030684,4]
[328480150,1717429839279,-500.0,0.00030684,4]
[328480151,1717429839289,-500.0,0.00030684,4]
[328480152,1717429839299,-1850.48,0.00030684,4]
[328480153,1717429839308,-500.0,0.00030684,4]
[328480154,1717429839318,-500.0,0.00030684,4]
[328480155,1717429839333,-627.32,0.00030684,4]
[328480156,1717429839479,-500.0,0.00030684,4]
[328480157,1717429839495,-500.0,0.00030684,4]
[328480158,1717429839504,-599.0,0.00030684,4]
[328480159,1717429839515,-154.27917163,0.00030687,7]
[328480160,1717429839525,-166.66666666,0.00030813,7]
[328480161,1717429839534,-151.0,0.00030911,7]
[328480162,1717429839544,-500.0,0.00030957,4]
[328480163,1717429839554,-500.0,0.00030957,4]
[328480164,1717429839564,-500.0,0.00030957,4]
[328480165,1717429839574,-500.0,0.00030957,4]
[328480167,1717429839586,-500.0,0.00030957,4]
[328480168,1717429839596,-500.0,0.00030957,4]
[328480169,1717429839605,-500.0,0.00030957,4]
[328480170,1717429839616,-500.0,0.00030957,4]
[328480171,1717429839626,-500.0,0.00030957,4]
[328480172,1717429839636,-500.0,0.00030957,4]
[328480173,1717429839646,-543.64,0.00030957,4]
[328480174,1717429839658,-500.0,0.00030957,4]
[328480175,1717429839668,-500.0,0.00030957,4]
[328480176,1717429839679,-500.0,0.00030957,4]
[328480177,1717429839688,-598.36979753,0.00030957,4]
[328480178,1717429839698,-500.0,0.00030957,4]
[328480179,1717429839707,-500.0,0.00030957,4]
[328480180,1717429839717,-500.0,0.00030957,4]
[328480181,1717429839726,-500.0,0.00030957,4]
[328480182,1717429839738,-500.0,0.00030957,4]
[328480183,1717429839747,-500.0,0.00030957,4]
[328480184,1717429839757,-500.0,0.00030957,4]
[328480185,1717429839766,-500.0,0.00030957,4]
[328480186,1717429839777,-861.6,0.00030957,4]
[328480187,1717429839786,-500.0,0.00030957,4]
[328480188,1717429839796,-500.0,0.00030957,4]
[328480189,1717429839805,-500.0,0.00030957,4]
[328480190,1717429839817,-500.0,0.00030957,4]
[328480191,1717429839827,-500.0,0.00030957,4]
[328480192,1717429839837,-500.0,0.00030957,4]
[328480193,1717429839847,-500.0,0.00030957,4]
[328480194,1717429839856,-500.0,0.00030957,4]
[328480195,1717429839866,-500.0,0.00030957,4]
[328480196,1717429839876,-500.0,0.00030957,4]
[328480197,1717429839885,-500.0,0.00030957,4]
[328480198,1717429839895,-500.0,0.00030957,4]
[328480199,1717429839905,-500.0,0.00030957,4]
[328480200,1717429839918,-500.0,0.00030957,4]
[328480201,1717429839928,-500.0,0.00030957,4]
[328480202,1717429839938,-500.0,0.00030957,4]
[328480203,1717429839948,-449.14,0.00030957,4]
[328480204,1717429839958,-500.0,0.00030957,4]
[328480205,1717429839968,-1392.31,0.00030957,4]
[328480206,1717429839978,-830.35,0.00030957,4]
[328480207,1717429839987,-500.0,0.00030957,4]
[328480208,1717429839997,-150.45969003,0.00030958,4]
[328480209,1717429840007,-500.0,0.00030958,4]
[328480210,1717429840017,-500.0,0.00030958,4]
[328480211,1717429840027,-500.0,0.00030958,4]
[328480212,1717429840036,-500.99,0.00030958,4]
[328480213,1717429840046,-205.06,0.00030958,4]
[328480214,1717429840056,-983.46,0.00030958,4]
[328480215,1717429840066,-1350.41,0.00030958,4]
[328480216,1717429840076,-500.0,0.00030958,4]
[328480217,1717429840085,-500.0,0.00030958,4]
[328480218,1717429840095,-500.0,0.00030958,4]
[328480219,1717429840105,-860.35,0.00030958,4]
[328480220,1717429840115,-500.0,0.00030958,4]
[328480221,1717429840126,-500.0,0.00030958,4]
[328480222,1717429840135,-500.0,0.00030958,4]
[328480223,1717429840145,-500.0,0.00030958,4]
[328480224,1717429840155,-429.43,0.00030958,4]
[328480225,1717429840164,-500.0,0.00030958,4]
[328480226,1717429840174,-2676.48,0.00030958,4]
[328480227,1717429840183,-586.06,0.00030958,4]
[328480228,1717429840194,-593.55,0.00030958,4]
[328480229,1717429840203,-2597.85,0.00030958,4]
[328480230,1717429840213,-591.98,0.00030958,4]
[328480231,1717429840223,-3165.87,0.00030958,4]
[328480232,1717429840233,-500.0,0.00030958,4]
[328480233,1717429840243,-500.0,0.00030958,4]
[328480234,1717429840253,-1110.13,0.00030958,4]
[328480235,1717429840262,-849.57,0.00030958,4]
[328480236,1717429840272,-746.25,0.00030958,4]
[328480238,1717429840282,-500.0,0.00030958,4]
[328480240,1717429840292,-500.0,0.00030958,4]
[328480242,1717429840301,-500.0,0.00030958,4]
[328480245,1717429840311,-626.03,0.00030958,4]
[328480247,1717429840321,-500.0,0.00030958,4]
[328480249,1717429840331,-500.0,0.00030958,4]
[328480251,1717429840341,-500.0,0.00030958,4]
[328480254,1717429840351,-500.0,0.00030958,4]
[328480257,1717429840360,-500.0,0.00030958,4]
[328480260,1717429840370,-500.0,0.00030958,4]
[328480263,1717429840380,-500.0,0.00030958,4]
[328480265,1717429840389,-500.0,0.00030958,4]
[328480267,1717429840398,-500.0,0.00030958,4]
[328480269,1717429840408,-2530.81,0.00030958,4]
[328480271,1717429840420,-500.0,0.00030958,4]
[328480273,1717429840429,-500.0,0.00030958,4]
[328480274,1717429840439,-500.0,0.00030958,4]
[328480277,1717429840450,-646.19267792,0.00030958,4]
[328480278,1717429840460,-500.0,0.00030958,4]
[328480281,1717429840470,-627.32,0.00030958,4]
[328480283,1717429840480,-500.0,0.00030958,4]
[328480285,1717429840490,-500.0,0.00030958,4]
[328480287,1717429840499,-599.0,0.00030958,4]
[328480289,1717429840509,-314.307267,0.00030959,14]
[328480291,1717429840520,-686.1864328,0.00031,4]
[328480293,1717429840530,-154.27917163,0.00031005,7]
[328480295,1717429840540,-204.28818122,0.00031043,7]
[328480297,1717429840550,-886.81841427,0.00031061,2]
[328480299,1717429840560,-155.32938529,0.00031107,7]
[328480301,1717429840570,-154.54266825,0.00031162,7]
[328480303,1717429840579,-156.01670739,0.00031206,7]
[328480304,1717429840589,-2044.70234526,0.0003123,4]
[328480305,1717429840598,-500.0,0.00031231,4]
[328480306,1717429840607,-500.0,0.00031231,4]
[328480307,1717429840616,-500.0,0.00031231,4]
[328480308,1717429840625,-500.0,0.00031231,4]
[328480309,1717429840635,-500.0,0.00031231,4]
[328480310,1717429840644,-500.0,0.00031231,4]
[328480311,1717429840654,-500.0,0.00031231,4]
[328480312,1717429840664,-500.0,0.00031231,4]
[328480313,1717429840674,-500.0,0.00031231,4]
[328480314,1717429840684,-500.0,0.00031231,4]
[328480315,1717429840693,-500.0,0.00031231,4]
[328480316,1717429840703,-500.0,0.00031231,4]
[328480317,1717429840713,-500.0,0.00031231,4]
[328480318,1717429840723,-500.0,0.00031231,4]
[328480319,1717429840733,-500.0,0.00031231,4]
[328480320,1717429840745,-500.0,0.00031231,4]
[328480321,1717429840755,-500.0,0.00031231,4]
[328480322,1717429840764,-500.0,0.00031231,4]
[328480323,1717429840774,-861.6,0.00031231,4]
[328480324,1717429840783,-500.0,0.00031231,4]
[328480325,1717429840792,-500.0,0.00031231,4]